Cogmind - Beta 15 @@@ ROGUE MODE // 2025.06.27 @ 19:42:19 Player: Cracklepappy Result: Self-destructed Performance ------------- Evolutions (4) 2000 Regions Visited (8) 1600 Robots Destroyed (146) 730 Value Destroyed (4511) 4511 Prototype IDs (32) 640 Alien Tech Used (0) 0 Bonus (1524) 1524 TOTAL SCORE: 11005 Bonus ------- High Alert Combat Kills 55 Follower Combat Kills 280 Entered Garrisons 200 Used RIF Installer 500 Registered with UFD 300 Met Optimus in HQ 500 Friendly Fire -311 Cogmind --------- Core Integrity 549/850 Matter 300/300 Energy 90/100 System Corruption 4% Temperature Cool (0) Movement Rolling (130) Ox2 Location -6/Garrison Parts ------- > --- POWER (1) -------- (None) > --- PROPULSION (8) --- Armored Huge Wheel Improved Cesium-ion Thruster > --- UTILITY (4) ------ Huge Storage Unit Advanced Weight Redist. System Advanced Melee Analysis Suite Improved Utility Shielding > --- WEAPON (2) ------- Katana > --- INVENTORY (25) --- Mini Fusion Reactor Cooled Gravmag System Matter Compressor (157) Rocket Booster Rocket Booster Enhanced Optical Array Experimental Signal Interpreter Advanced Terrain Scanner Advanced Terrain Scan Processor Stasis Canceller Advanced Transmission Jammer Centrium Light Armor Plating Graphene Brace Improved Point Defense System Improved Trap Extractor (2/6 Vortex) Coil Gun Improved Heavy Machine Gun Hardcell Cannon Long-range Missile Launcher LU-1G1's Laser Shovel CPS Tube (2) CPS Tube (2) Thermal Lance Peak State ------------ > --- POWER ------------ Mini Fusion Reactor > --- PROPULSION ------- Armored Huge Wheel Armored Huge Wheel Ballwheel > --- UTILITY ---------- Huge Storage Unit Advanced Weight Redist. System Rocket Booster Advanced Melee Analysis Suite > --- WEAPON ----------- Great Axe Makeshift Spear > --- INVENTORY -------- Light Nuclear Core Armored Wheel Cooled Gravmag System Improved Cesium-ion Thruster Matter Compressor Advanced Weight Redist. System Rocket Booster Enhanced Optical Array Experimental Signal Interpreter Advanced Terrain Scanner Advanced Terrain Scan Processor Melee Analysis Suite Centrium Light Armor Plating Improved Trap Extractor Flak Gun Improved Heavy Machine Gun Long-range Missile Launcher LU-1G1's Laser Shovel CPS Tube CPS Tube Katana Katana Thermal Lance Vortex Trap Vortex Trap [Rating: 76] Favorites ----------- Power Reinforced Ion Engine Engine Reinforced Ion Engine Power Core Light Nuclear Core Reactor Mini Fusion Reactor Propulsion Light Treads Treads Light Treads Leg Armored Leg Wheel Armored Wheel Hover Unit Cooled Gravmag System Flight Unit Improved Cesium-ion Thruster Utility Huge Storage Unit Device Hardlight Generator Storage Huge Storage Unit Processor Improved Melee Analysis Suite Protection Centrium Light Armor Plating Weapon Katana Energy Gun Particle Gun Energy Cannon Advanced Beam Cannon Ballistic Gun Improved Assault Rifle Ballistic Cannon Improved Light Cannon Launcher Mini Grenade Launcher Special Weapon LU-1G1's Laser Shovel Impact Weapon Heavy Hammer Slashing Weapon Katana Piercing Weapon Makeshift Spear Special Melee Weapon Datajack Build | -11 -10 -10 -9 -9 -9 -9 -6 -6 ------- Run | Yrd Mat Min Mat Sto Rec Scr Fac Gar Slots Evolved 8 | . . . 2 . . . 6 . Power . | . . . . . . . . . Propulsion 6 | . . . 1 . . . 5 . Utility 2 | . . . 1 . . . 1 . Weapon . | . . . . . . . . . Parts Attached 115 | 7 6 4 25 28 4 16 18 7 Power 14 | 1 1 1 3 2 1 2 2 1 Engine 9 | 1 1 . 3 2 . 1 . 1 Core 4 | . . 1 . . . 1 2 . Reactor 1 | . . . . . 1 . . . Propulsion 43 | 2 . 1 11 15 1 4 6 3 Treads 29 | 2 . 1 11 14 . 1 . . Leg 3 | . . . . . . . 1 2 Wheel 8 | . . . . . . 3 5 . Hover 1 | . . . . . 1 . . . Flight 2 | . . . . 1 . . . 1 Utility 27 | 2 4 1 4 2 1 6 5 2 Device 9 | 1 2 . 2 . . . 3 1 Storage 6 | 1 2 1 . . . 1 1 . Processor 3 | . . . . . . 2 1 . Hackware . | . . . . . . . . . Protection 9 | . . . 2 2 1 3 . 1 Artifact . | . . . . . . . . . Weapon 31 | 2 1 1 7 9 1 4 5 1 Energy Gun 2 | . 1 . . . . . 1 . Energy Cannon 3 | . . . 3 . . . . . Ballistic Gun 13 | 2 . . 4 4 . . 2 1 Ballistic Cannon 2 | . . . . 2 . . . . Launcher 3 | . . 1 . . . 1 1 . Special Weapon 1 | . . . . . . 1 . . Impact Weapon 1 | . . . . . 1 . . . Slashing Weapon 4 | . . . . 2 . 1 1 . Piercing Weapon 1 | . . . . . . 1 . . Special Melee Weapon 1 | . . . . 1 . . . . Unidentified Prototypes 10 | . . . 2 1 3 1 2 1 Parts Lost 20 | . 1 1 1 1 . 4 4 8 Power 3 | . . . . . . 1 1 1 Propulsion 7 | . . 1 . . . 1 1 4 Utility 4 | . 1 . . 1 . 1 1 . Weapon 6 | . . . 1 . . 1 1 3 Highest Loss Streak 6 | . 1 1 1 1 . 3 2 6 To Critical Strikes . | . . . . . . . . . Average Backups 22 | 6 15 21 24 25 25 23 21 24 Power 1 | . 1 2 1 2 2 1 . 1 Propulsion 7 | 3 6 6 8 8 8 6 2 1 Utility 4 | . 4 7 5 4 4 3 8 12 Weapon 8 | 1 4 4 9 9 10 10 7 6 Tool/Special . | . . . . . . . . . Unused Backups 61 | 1 9 . 17 4 1 11 5 13 Power 3 | . . . 2 . . 1 . . Propulsion 14 | . 4 . 2 4 1 2 1 . Utility 20 | . 1 . 5 . . 2 3 9 Weapon 21 | 1 4 . 8 . . 5 1 2 Tool/Special 3 | . . . . . . 1 . 2 Average Slot Usage (%) 98 | . 99 100 99 99 100 99 72 76 Engine 7 | . 14 5 7 11 10 5 . 3 Core 1 | . . 8 3 . . . 3 . Reactor 1 | . . . . . . 4 2 2 Treads 24 | . 27 28 33 32 32 14 . . Wheel 7 | . . . . . . 18 26 19 Device 9 | . 13 14 13 11 11 2 9 6 Storage 11 | . 14 14 11 11 11 11 6 6 Processor 3 | . . . . . . 8 6 6 Protection 7 | . . . 8 10 11 10 2 5 Energy Gun 2 | . 12 14 . . . . . . Energy Cannon 1 | . . . 6 . . . . . Ballistic Gun 7 | . 15 13 14 14 . . 1 . Ballistic Cannon 2 | . . . . 4 1 4 1 . Slashing Weapon 4 | . . . . 2 10 8 3 7 Special Melee Weapon 4 | . . . . 1 9 8 . . Peak Build Rating 76 | 7 11 12 22 24 42 38 76 76 Average Rating 26 | 6 9 11 20 21 24 34 66 63 On Entrance 24 | . 7 10 12 22 23 36 35 76 Naked Turns . | . . . . . . . . . Heaviest Build 110 | 14 51 92 105 110 110 101 98 98 Greatest Support 100 | 40 40 40 60 69 69 69 100 100 Greatest Overweight (x) 4 | . 1 2 1 2 1 4 2 1 Average Overweight (x) 1 | . . 1 1 1 1 1 . . Largest Inventory Capacity 25 | 8 20 25 25 25 25 25 25 25 Average Capacity 23 | 7 17 22 25 25 25 25 25 25 Most Carried 25 | 8 19 23 25 25 25 25 25 25 Average Carried 22 | 6 16 21 24 24 24 23 23 24 Final Capacity 25 | 8 20 25 25 25 25 25 25 25 Final Carried 25 | 8 19 23 25 25 25 25 25 23 Class Distribution -------------------- 39% | Commander-Mutant 36% | Mutant 19% | Scavenger-Mutant 3% | Gladiator Dominant Class ---------------- Mutant | -10/Materials Mutant | -10/Mines Scavenger-Mutant | -9/Materials Scavenger-Mutant | -9/Storage Commander-Mutant | -9/Recycling Commander-Mutant | -9/Scraptown Mutant | -6/Factory Gladiator | -6/Garrison Resources | -11 -10 -10 -9 -9 -9 -9 -6 -6 ----------- Run | Yrd Mat Min Mat Sto Rec Scr Fac Gar Matter Collected 4612 | 410 463 46 692 1043 528 506 458 466 Remotely . | . . . . . . . . . Salvage Created 5691 | 228 529 86 1537 1528 403 553 349 478 Parts 353 | 23 36 12 90 95 15 30 24 28 Haulers Intercepted 10 | . 2 . 4 4 . . . . Recyclers Shooed 3 | . . . 2 . 1 . . . Parts Field Recycled . | . . . . . . . . . Retrieved Matter . | . . . . . . . . . Parts Self-Destructed . | . . . . . . . . . Prevented . | . . . . . . . . . Kills | -11 -10 -10 -9 -9 -9 -9 -6 -6 ------- Run | Yrd Mat Min Mat Sto Rec Scr Fac Gar Combat Hostiles Destroyed 107 | . 13 5 25 26 1 11 15 11 Melee 12 | . . . . . 1 1 2 8 Guns 58 | . 13 4 14 22 . . 5 . Cannons 20 | . . . 10 4 . 5 1 . AOE 16 | . . 1 . . . 5 7 3 Classes Destroyed 19 | 2 6 . 5 . . 4 1 1 Worker 4 | . 1 . 2 . . . 1 . Builder 1 | . 1 . . . . . . . Tunneler 8 | 8 . . . . . . . . Hauler 10 | . 2 . 4 4 . . . . Recycler 8 | 1 . . 2 2 3 . . . Mechanic 3 | . 1 . . 2 . . . . Operator 2 | . . . 2 . . . . . Watcher 2 | . . . 1 1 . . . . Swarmer 24 | . 6 4 . . . . 11 3 Grunt 47 | . 7 1 17 15 . . 2 5 Brawler 3 | . . . 1 1 . . 1 . Duelist 2 | . . . 1 1 . . . . Sentry 18 | . . . 6 9 1 . . 2 Specialist 1 | . . . . . . . . 1 Programmer 1 | . . . . . . . 1 . Federalist 1 | . . . . . . 1 . . Ranger 2 | . . . . . . 2 . . Guru 1 | . . . . . . 1 . . Scrapper 8 | . . . . . . 8 . . Best Kill Streak 6 | 1 4 3 4 6 3 6 4 5 Combat Bots Only 6 | . 3 3 3 3 1 6 4 5 Max Kills in Single Turn 3 | 1 2 2 1 2 1 2 3 1 Gunslinging 1 | . 1 1 . 1 . . . . Exploded 3 | . . 1 . . . 2 3 1 Melee 1 | . . . . . 1 1 1 1 Uniques/NPCs Destroyed . | . . . . . . . . . Combat | -11 -10 -10 -9 -9 -9 -9 -6 -6 -------- Run | Yrd Mat Min Mat Sto Rec Scr Fac Gar Hostile Shots Fired 598 | . 70 20 101 96 2 78 91 140 Missed 157 | . 12 7 30 24 1 18 23 42 Hits 441 | . 58 13 71 72 1 60 68 98 Melee 2 | . . . . 2 . . . . Projectile 439 | . 58 13 71 70 1 60 68 98 Critical Strikes 15 | . . 1 2 3 . 3 . 6 Damage Taken 5850 | . 649 125 900 781 22 1071 938 1364 Core 641 | . 115 . 32 43 . 150 52 249 Absorbed by Shields 158 | . . . 24 128 . 6 . . Redirected to Shielding 58 | . . . . . . . . 58 Ignored by Resistances 76 | . . . 16 60 . . . . Regen/Repaired (Parts) 98 | . 98 . . . . . . . Core Remaining (%) 65 | 100 . 54 . . . 43 . . Volleys Fired 377 | 35 61 9 133 96 . 22 18 3 Largest 2 | 2 2 2 2 2 . 2 2 1 Hottest 136 | 40 85 85 136 66 . 66 61 43 Shots Fired 683 | 70 121 16 208 194 . 39 32 3 Gun 532 | 70 121 14 132 177 . . 18 . Cannon 137 | . . . 76 17 . 34 10 . Launcher 14 | . . 2 . . . 5 4 3 Special . | . . . . . . . . . Kinetic 542 | 70 79 7 130 194 . 34 28 . Thermal 127 | . 42 7 78 . . . . . Explosive 14 | . . 2 . . . 5 4 3 Electromagnetic . | . . . . . . . . . Robot Hit Streak 18 | 4 9 8 10 18 . 13 5 4 Robot Miss Streak 7 | 2 6 1 3 5 . 3 7 . Penetration Max . | . . . . . . . . . Secondary Targets 7 | . 2 1 1 3 . . . . Max Gunslinging Chain 1 | . 1 1 1 1 . . . . Shots Hit Robots 555 | 42 72 10 146 138 43 28 37 39 Core Hits 238 | 15 31 8 46 55 7 22 34 20 Critical Kills 3 | . 1 . 2 . . . . . Critical Parts Destroyed 1 | . . . . 1 . . . . Critical Strikes 8 | . 1 . 2 1 . 1 . 3 Meltdown 2 | . . . 2 . . . . . Destroy 2 | . 1 . . 1 . . . . Blast 1 | . . . . . . 1 . . Sever 1 | . . . . . . . . 1 Impale 2 | . . . . . . . . 2 Melee Attacks 154 | . . . . 10 43 6 41 54 Impact . | . . . . . . . . . Slashing 68 | . . . . 9 15 4 20 20 Piercing 56 | . . . . . . 1 21 34 Sneak Attacks 36 | . . . . 2 33 1 . . Combat Hostiles 3 | . . . . . 3 . . . Follow-up Attacks 7 | . . . . . . . . 7 Damage Inflicted 11329 | 406 1017 245 2576 2215 908 1016 1422 1524 Guns 5091 | 406 1006 142 1344 1934 . . 259 . Cannons 1950 | . . . 1188 171 . 484 107 . Explosions 1484 | . . 94 . . . 500 625 265 Melee 2672 | . . . . 70 880 32 431 1259 Ramming 132 | . 11 9 44 40 28 . . . Kinetic 5346 | 406 610 65 1310 2105 . 484 366 . Thermal 1695 | . 396 77 1222 . . . . . Explosive 1484 | . . 94 . . . 500 625 265 Electromagnetic . | . . . . . . . . . Impact . | . . . . . . . . . Slashing 1501 | . . . . 70 880 . . 551 Piercing 1171 | . . . . . . 32 431 708 Highest Corruption 8 | . . . . 8 8 . 2 4 Average Corruption 5 | . . . . 5 8 . 2 3 Corruption Purged . | . . . . . . . . . Corruption Blocked . | . . . . . . . . . Effects 155 | . . . . 50 82 . 12 11 Message Errors 42 | . . . . 14 26 . . 2 Matter Fused 47 | . . . . 20 18 . 7 2 Heat Flow Errors 15 | . . . . 4 10 . 1 . Energy Discharges 19 | . . . . 4 9 . 4 2 Parts Rejected 2 | . . . . . . . . 2 Parts Fused 1 | . . . . 1 . . . . Data Loss (minor) 17 | . . . . 3 12 . . 2 Data Loss (major) 7 | . . . . 1 5 . . 1 Misfires 2 | . . . . 2 . . . . Alerts 3 | . . . . 1 2 . . . Overload Shots . | . . . . . . . . . Overflow Damage 293 | . . 2 35 30 91 46 61 28 Projectiles 55 | . . . 35 . . 13 7 . Explosions 85 | . . 2 . . . 33 50 . Melee 153 | . . . . 30 91 . 4 28 Knockbacks 9 | . . . . 3 . 2 4 . Impact 1 | . . . . 1 . . . . Kinetic 7 | . . . . 2 . 2 3 . Secondary 1 | . . . . . . . 1 . Self-Inflicted Damage 49 | . . . . . . 49 . . Shots 1 | . . . . . . 1 . . Rammed 16 | . 4 2 6 2 2 . . . Targets Rammed 17 | . 4 2 6 3 2 . . . Kicked . | . . . . . . . . . Crushed 1 | . . . . 1 . . . . Highest Temperature 282 | . 27 12 174 263 270 282 252 10 Average Temperature 64 | . 11 6 41 54 105 98 138 6 Received Heat Transfer 2440 | . 213 54 450 348 12 541 168 654 Effects 1 | . . . . . 1 . . . Interference 1 | . . . . . 1 . . . Siege Activations . | . . . . . . . . . Martial Activations . | . . . . . . . . . Shielding Activations . | . . . . . . . . . Robots Disrupted . | . . . . . . . . . Combat Hostiles . | . . . . . . . . . Robots Corrupted . | . . . . . . . . . Combat Hostiles . | . . . . . . . . . Parts Fried . | . . . . . . . . . Impact Corruptions . | . . . . . . . . . Robots Melted 2 | . . . 2 . . . . . Combat Hostiles 1 | . . . 1 . . . . . Parts Melted 10 | . 1 . 7 . . 2 . . Heat Transferred 3330 | . 925 185 2220 . . . . . Parts Sabotaged . | . . . . . . . . . Parts Stolen . | . . . . . . . . . Parts Stripped . | . . . . . . . . . Power Chain Reactions . | . . . . . . . . . Alert | -11 -10 -10 -9 -9 -9 -9 -6 -6 ------- Run | Yrd Mat Min Mat Sto Rec Scr Fac Gar Maximum Alert Level 2 | . . . 1 . . . 1 2 Low Security (%) 90 | 100 100 100 78 100 100 . 84 4 Level 1 8 | . . . 21 . . . 15 54 Level 2 1 | . . . . . . . . 40 Level 3 . | . . . . . . . . . Level 4 . | . . . . . . . . . Level 5 . | . . . . . . . . . High Security . | . . . . . . . . . Max Security . | . . . . . . . . . Peak Influence 570 | 5 98 101 338 193 57 . 271 570 Initial 177 | . . 31 13 69 31 . . 177 Average 74 | . 16 18 143 63 8 . 105 404 Influence Increases 3778 | 45 380 210 1037 782 254 . 657 413 Destroy 0b10 Robot/C 2120 | . 260 140 620 520 60 . 300 220 Destroy 0b10 Robot/NC 210 | 45 25 . 60 45 30 . 5 . Destroy Leader 506 | . 64 30 192 160 . . 50 10 Allied During Kill 70 | . . 11 36 . 15 . 8 . Successful Hack 222 | . 30 . 51 18 29 . 80 14 Select Force Hacks 120 | . . . . . 120 . . . Disable Machine 195 | . . . 60 30 . . 90 15 Anti-Garrison Action 100 | . . . . . . . . 100 Destroy Structure 115 | . 1 14 3 9 . . 34 54 Partial Spotted 15 | . . . . . . . 15 . Lose Combat Pursuer 105 | . . 15 15 . . . 75 . Influence Decreases 3268 | 45 300 254 908 866 335 . 403 157 Entered New Map 295 | . . 49 23 96 50 . . 77 Time Decay 2275 | 45 300 205 540 587 285 . 313 . Lost Part 120 | . . . . 10 . . 30 80 Lost Ally 105 | . . . 45 . . . 60 . Purge Threat 473 | . . . 300 173 . . . . Squads Dispatched 16 | . 2 . 5 6 . . 3 . Investigation 9 | . 2 . 3 3 . . 1 . Extermination 2 | . . . . . . . 2 . Reinforcement 5 | . . . 2 3 . . . . Assault . | . . . . . . . . . Garrison . | . . . . . . . . . Intercept . | . . . . . . . . . Searches Triggered . | . . . . . . . . . Construction Impeded 1 | . . . . 1 . . . . Haulers Reinforced . | . . . . . . . . . Active Scanning Responses . | . . . . . . . . . Cargo Convoy Interrupts . | . . . . . . . . . Stealth | -11 -10 -10 -9 -9 -9 -9 -6 -6 --------- Run | Yrd Mat Min Mat Sto Rec Scr Fac Gar Distress Signals 10 | . 2 . 3 3 . . . 2 Communications Jammed . | . . . . . . . . . Distress Signals . | . . . . . . . . . Times Spotted 181 | . 29 8 46 40 3 15 25 15 Peak Tracking Total 6 | . 4 3 3 3 . 4 6 5 Tactical Retreats 4 | . . 1 1 . . . 2 . Traps | -11 -10 -10 -9 -9 -9 -9 -6 -6 ------- Run | Yrd Mat Min Mat Sto Rec Scr Fac Gar Traps Triggered 13 | . 3 . 3 4 . . 1 2 Indirectly . | . . . . . . . . . Trap Hack Attempts 45 | . . . . 45 . . . . Triggered . | . . . . . . . . . Disarmed . | . . . . . . . . . Reprogrammed 5 | . . . . 5 . . . . Reused . | . . . . . . . . . Traps Extracted . | . . . . . . . . . Installed . | . . . . . . . . . Triggered . | . . . . . . . . . Most Traps Carried 2 | . . . . . . . 2 2 Machines | -11 -10 -10 -9 -9 -9 -9 -6 -6 ---------- Run | Yrd Mat Min Mat Sto Rec Scr Fac Gar Machines Disabled 17 | . . . 4 2 . 3 6 2 Max in Single Turn 3 | . . . 1 1 . 1 3 1 Garrison Relay 1 | . . . . . . . . 1 Machines Repaired . | . . . . . . . . . Machines Dismantled . | . . . . . . . . . Machines Sabotaged . | . . . . . . . . . Overloaded Fab Kills . | . . . . . . . . . Hacking | -11 -10 -10 -9 -9 -9 -9 -6 -6 --------- Run | Yrd Mat Min Mat Sto Rec Scr Fac Gar Machines Accessed 56 | . 6 . 12 9 10 3 15 1 Terminals 38 | . 5 . 9 9 6 . 8 1 Fabricators 3 | . . . . . . . 3 . Repair Stations 4 | . 1 . 1 . . . 2 . Recycling Units 4 | . . . . . 4 . . . Scanalyzers 3 | . . . 2 . . . 1 . Garrison Access 1 | . . . . . . . 1 . Total Hacks 172 | . 20 . 43 24 24 13 44 4 Successful 86 | . 10 . 26 11 10 13 15 1 Failed 83 | . 10 . 16 12 14 . 28 3 Catastrophic 20 | . 2 . 4 2 2 . 10 . Database Lockouts 3 | . . . 1 1 . . 1 . Manual 72 | . 16 . 23 10 15 . 8 . Terminals 125 | . 16 . 38 24 19 . 24 4 Fabricators 8 | . . . . . . . 8 . Repair Stations 10 | . 4 . 1 . . . 5 . Recycling Units 5 | . . . . . 5 . . . Scanalyzers 9 | . . . 4 . . . 5 . Garrison Access 2 | . . . . . . . 2 . Terminal Hacks 57 | . 4 . 16 10 6 13 7 1 Record 12 | . . . . . . 12 . . Part Schematic 8 | . . . 3 2 2 . 1 . Robot Schematic 3 | . 2 . . . 1 . . . Prototype ID Bank 4 | . . . 1 2 1 . . . Open Door 4 | . . . . 3 . . 1 . Branch Access Points 1 | . . . 1 . . . . . Emergency Access Points 3 | . . . 1 . . . 1 1 Terminal Index 2 | . 1 . 1 . . . . . Alert Level 3 | . . . 1 . 1 . 1 . Unreport Threat 4 | . . . 2 2 . . . . Locate Traps 5 | . . . 2 . . . 3 . Transport Status 1 | . . . 1 . . . . . Hauler Manifests 3 | . . . 2 1 . . . . Registered Prototypes 1 | . . . . . 1 . . . Zone Layout 2 | . 1 . 1 . . . . . Proto ID Catalog 1 | . . . . . . 1 . . Fabricator Hacks 4 | . . . . . . . 4 . Network Status 1 | . . . . . . . 1 . Load Schematic 1 | . . . . . . . 1 . Build 2 | . . . . . . . 2 . Repair Station Hacks 2 | . 2 . . . . . . . Scan Component 1 | . 1 . . . . . . . Repair 1 | . 1 . . . . . . . Recycling Unit Hacks . | . . . . . . . . . Scanalyzer 6 | . . . 4 . . . 2 . Insert Component 3 | . . . 2 . . . 1 . Analyze 3 | . . . 2 . . . 1 . Garrison Access Hacks 1 | . . . . . . . 1 . Unlock Access 1 | . . . . . . . 1 . Unauthorized Hacks 16 | . 4 . 6 1 4 . 1 . Terminals 11 | . 4 . 6 1 . . . . Botnet 1 | . . . . 1 . . . . Operators 1 | . 1 . . . . . . . Skim 9 | . 3 . 6 . . . . . Fabricators 1 | . . . . . . . 1 . Haulers 1 | . . . . . . . 1 . Repair Stations . | . . . . . . . . . Recycling Units 4 | . . . . . 4 . . . Tunnel 4 | . . . . . 4 . . . Scanalyzers . | . . . . . . . . . Garrison Access . | . . . . . . . . . Data Cores Recovered 1 | . . . 1 . . . . . Used . | . . . . . . . . . Hacking Detections 44 | . 6 . 10 9 5 . 13 1 Full Trace Events 6 | . 1 . . 3 . . 1 1 Feedback Events 1 | . . . . . . . . 1 Corruption 1 | . . . . . . . . 1 Feedback Blocked . | . . . . . . . . . Robot Schematics Acquired 3 | . 2 . . . 1 . . . Robots Built 3 | . . . . . . . 3 . Authchips . | . . . . . . . . . Time 116 | . . . . . . . 116 . Total Robot Build Rating 9 | . . . . . . . 9 . Part Schematics Acquired 11 | . . . 5 2 2 . 2 . Parts Built 2 | . . . . . . . 2 . Authchips . | . . . . . . . . . Time 42 | . . . . . . . 42 . Total Part Build Rating 8 | . . . . . . . 8 . Parts Repaired 1 | . 1 . . . . . . . Time 26 | . 26 . . . . . . . Parts Recycled . | . . . . . . . . . Recycled Matter . | . . . . . . . . . Retrieved Matter . | . . . . . . . . . Retrieved Components . | . . . . . . . . . Parts Scanalyzed 3 | . . . 2 . . . 1 . Part Schematics Acquired 3 | . . . 2 . . . 1 . Parts Damaged . | . . . . . . . . . Bothacking | -11 -10 -10 -9 -9 -9 -9 -6 -6 ------------ Run | Yrd Mat Min Mat Sto Rec Scr Fac Gar Used RIF Installer 1 | . . . . . . . . 1 Robots Hacked 8 | . . . . 1 6 1 . . Non-combat 7 | . . . . 1 6 . . . Combat 1 | . . . . . . 1 . . Robot Hacks Applied 11 | . . . . 1 9 1 . . parse_system 11 | . . . . 1 9 1 . . Relay Couplers Released 5 | . . . . . . . . 5 Machine Destruction 5 | . . . . . . . . 5 Fabnet Peak Effective % . | . . . . . . . . . Robots Rewired 12 | . . . . . 12 . . . Allies Hacked . | . . . . . . . . . Hacks Repelled . | . . . . . . . . . Allies | -11 -10 -10 -9 -9 -9 -9 -6 -6 -------- Run | Yrd Mat Min Mat Sto Rec Scr Fac Gar Total Allies 18 | . . 3 . . 12 . 3 . Largest Group 12 | . . 3 3 . 12 12 3 . Highest-Rated Group 178 | . . 40 40 . 174 178 48 . Highest-Rated Ally 27 | . . 16 16 . 27 27 16 . Total Orders 54 | . . . . . 2 52 . . STAY 29 | . . . . . 1 28 . . FOLLOW 12 | . . . . . 1 11 . . GUARD 2 | . . . . . . 2 . . TUNNEL 2 | . . . . . . 2 . . PICKUP 8 | . . . . . . 8 . . COLLECT 1 | . . . . . . 1 . . Ally Attacks 123 | . . 5 56 . 7 45 10 . Total Damage 1853 | . . 25 554 . 122 1034 118 . Kills 23 | . . 2 7 . 2 12 . . Allies Corrupted 1 | . . . . . . . 1 . Allies Melted 5 | . . . . . 1 4 . . Intel | -11 -10 -10 -9 -9 -9 -9 -6 -6 ------- Run | Yrd Mat Min Mat Sto Rec Scr Fac Gar Active Infowar (turns) 358 | 177 181 . . . . . . . Seismic 358 | 177 181 . . . . . . . Robot Analysis Total . | . . . . . . . . . Derelict Logs Recovered 2 | . . 2 . . . . . . Drone Launches . | . . . . . . . . . Drone Recoveries . | . . . . . . . . . Exploration | -11 -10 -10 -9 -9 -9 -9 -6 -6 ------------- Run | Yrd Mat Min Mat Sto Rec Scr Fac Gar Turns Passed 21879 | 653 1897 1847 4191 2645 2608 6562 1035 441 Spaces Moved 9927 | 338 819 651 1497 901 1028 3538 903 252 Core 4 | 4 . . . . . . . . Treads 6405 | 334 819 651 1497 901 1028 1175 . . Legs . | . . . . . . . . . Wheels 3518 | . . . . . . 2363 903 252 Hover . | . . . . . . . . . Flight . | . . . . . . . . . Fastest Speed 46 | 50 160 240 240 240 240 120 46 47 Average Speed 190 | 158 198 277 240 240 240 159 86 109 Slowest Speed 490 | 160 240 320 240 320 240 490 96 111 Overloaded Moves . | . . . . . . . . . Propulsion Burnouts . | . . . . . . . . . Robots Hopped . | . . . . . . . . . Potential Cave-ins . | . . . . . . . . . Cave-ins Triggered . | . . . . . . . . . Exploration Rate (%) 72 | 23 98 96 93 89 96 93 31 29 Regions Visited 8 Branch Regions 4 Pre-discovered Areas 6 | . . 1 1 . 4 . . . Known Exits Taken 3 | . . . 1 . 1 . 1 . Unknown Exits Taken 5 | 1 1 1 . 1 . 1 . . Scrap Searched 11 | . . 1 . . . 10 . . Spaces Dug 19 | . . . . 4 . 3 4 8 Terrain Destroyed 122 | . . 18 . 4 . 41 36 23 Melee 8 | . . . . 3 . 1 4 . Projectile 2 | . . . . 1 . 1 . . AOE 110 | . . 18 . . . 37 32 23 Terrain Rammed . | . . . . . . . . . Walls Destroyed . | . . . . . . . . . Machines Disabled . | . . . . . . . . . Actions | -11 -10 -10 -9 -9 -9 -9 -6 -6 --------- Run | Yrd Mat Min Mat Sto Rec Scr Fac Gar Total 12057 | 389 979 669 1900 1180 1125 4391 1071 353 Wait 1107 | . 50 . 167 49 33 752 30 26 Move 9920 | 337 818 650 1497 900 1027 3537 902 252 Hop . | . . . . . . . . . Pick Up 121 | 9 23 3 33 7 2 20 19 5 Fast Attach 22 | 7 2 . 1 5 . . 4 3 Attach 29 | . . 1 3 . . 2 17 6 Detach 13 | . . . . . . . 11 2 Swap 135 | . 6 4 23 36 15 29 15 7 Drop 126 | 1 15 . 38 29 3 23 14 3 Fire 377 | 35 61 9 133 96 . 22 18 3 Melee 146 | . . . . 10 43 6 41 46 Ram . | . . . . . . . . . Kick . | . . . . . . . . . Crush 16 | . 4 2 5 3 2 . . . Escape Stasis . | . . . . . . . . . Rewire . | . . . . . . . . . Trap 45 | . . . . 45 . . . . Miscellaneous . | . . . . . . . . . Route ------- -11/Scrapyard -10/Materials (discovered 4 exits: *Mat x3 / [*Min]) -10/Mines (discovered 3 exits: *Mat x2 / [*Sub]) -9/Materials (discovered 7 exits: *Mat x3 / *Min x2 / *Sto x2) -9/Storage (discovered 2 exits: *Mat / *Rec) -9/Recycling (discovered 2 exits: [*Fac] / *Scr) -9/Scraptown (discovered 2 exits: *Fac x2) -6/Factory (discovered 3 exits: [*Fac] / [*Ext] / Gar) -6/Garrison History --------- Turn | Location | Event 7 | -11/Scrapyard | Discovered new exit (range 16) 654 | -11/Scrapyard | Entered Materials 655 | -10/Materials | Build established: Mutant 928 | -10/Materials | Discovered new exit (range 15) 1189 | -10/Materials | Discovered new exit (range 8) 1385 | -10/Materials | Discovered new exit (range 15) 1816 | -10/Materials | Discovered new exit (range 15) 2229 | -10/Materials | Repaired Lgt. Treads 2551 | -10/Materials | Entered Mines 2571 | -10/Mines | Met a Derelict bent on vengeance 2968 | -10/Mines | Discovered new exit (range 7) 3803 | -10/Mines | Learned Materials terminal intel 3876 | -10/Mines | Assisted by bots powering up and referring to "LRC-V3" 4194 | -10/Mines | Discovered new exit (range 8) 4194 | -10/Mines | Discovered new exit (range 13) 4398 | -10/Mines | Entered Materials 4398 | -9/Materials | Accompanied by 3 allies 4398 | -9/Materials | Evolved 2 slots: Propulsion x1, Utility x1 4399 | -9/Materials | Loaded intel: 12 terminal locations 4417 | -9/Materials | Identified exit to Mines 4417 | -9/Materials | Identified exit to Storage 4693 | -9/Materials | Build established: Scavenger-Mutant 5061 | -9/Materials | Build established: Mutant 5768 | -9/Materials | Build established: Scavenger-Mutant 6038 | -9/Materials | Central database locked down 6557 | -9/Materials | Learned Storage security intel 6631 | -9/Materials | Learned location of 1 exit from Storage 6659 | -9/Materials | Learned 4 Recycling zone layouts 6660 | -9/Materials | Learned Storage security intel 6664 | -9/Materials | Learned 2 Storage zone layouts 6680 | -9/Materials | Learned Storage interactive machine intel 6993 | -9/Materials | Discovered new exit (range 3) 7593 | -9/Materials | Discovered new exit (range 9) 8088 | -9/Materials | Discovered new exit (range 10) 8416 | -9/Materials | Build established: Mutant 8589 | -9/Materials | Entered Storage 8590 | -9/Storage | Identified exit to Materials 8593 | -9/Storage | Loaded intel: 22 interactive machine locations 9156 | -9/Storage | Build established: Scavenger-Mutant 9457 | -9/Storage | Used back door to open Recycling access 9457 | -9/Storage | Discovered new exit (range 5) 9822 | -9/Storage | Central database locked down 10492 | -9/Storage | Build established: Mutant 10922 | -9/Storage | Met 01-MTF 11234 | -9/Storage | Entered Recycling 11234 | -9/Recycling | Accompanied by 1 ally (01-MTF) 11235 | -9/Recycling | Identified exit to Scraptown 11755 | -9/Recycling | Build established: Commander-Mutant 12068 | -9/Recycling | Discovered new exit (range 5) 13612 | -9/Recycling | Scanned before Scraplab entrance 13787 | -9/Recycling | Entered Scraplab 13842 | -9/Recycling | Entered Scraptown 13842 | -9/Scraptown | Accompanied by 12 allies 13842 | -9/Scraptown | System corruption cleaned by C-Scrubber 14244 | -9/Scraptown | Discovered new exit (range 7) 14496 | -9/Scraptown | Heard Great Nut preacher, LISTEN AND RECITE! 14660 | -9/Scraptown | Visited Cyclists 14674 | -9/Scraptown | Visited The Evicted 14727 | -9/Scraptown | Visited Bundlers 15024 | -9/Scraptown | Visited Red Mages 15159 | -9/Scraptown | Visited Fellowship of the Rings 15755 | -9/Scraptown | Visited Comm Corps 15894 | -9/Scraptown | Visited TADAMA 16036 | -9/Scraptown | Visited UFD Registry 16036 | -9/Scraptown | Registered with UFD as "Dualguard" 16120 | -9/Scraptown | Visited LU-1G1's Boring Crew 16216 | -9/Scraptown | Visited DA-N13 Charitable Foundation 16238 | -9/Scraptown | Found DCF Scrap (30 items) 16293 | -9/Scraptown | Visited Infowarlord's Domain 16336 | -9/Scraptown | Visited Junk Repository 16382 | -9/Scraptown | Visited Scrapoid Pod Storage 16422 | -9/Scraptown | Visited Scrap Suit Storage 16468 | -9/Scraptown | Visited Science Guys 16547 | -9/Scraptown | Visited Curators Association 16622 | -9/Scraptown | Visited Science Testing Area 16658 | -9/Scraptown | Visited Derelict Rescue Squad 17024 | -9/Scraptown | Discovered new exit (range 5) 18742 | -9/Scraptown | Entered Cyclist Reading Room 19663 | -9/Scraptown | Met Optimus 19663 | -9/Scraptown | Accepted into 0bPrime 20063 | -9/Scraptown | Civil war broke out across Scraptown 20085 | -9/Scraptown | Found Prototype Wheel 20139 | -9/Scraptown | Found Thermal Lance 20229 | -9/Scraptown | Found Prototype Special Weapon 20237 | -9/Scraptown | Identified LU-1G1's Laser Shovel 20276 | -9/Scraptown | Found Exp. Signal Interpreter 20394 | -9/Scraptown | Lost 3 parts (1p1n1u) 20399 | -9/Scraptown | Core integrity fell below 50% 20404 | -9/Scraptown | Entered Factory 20404 | -6/Factory | Evolved 6 slots: Propulsion x5, Utility x1 20404 | -6/Factory | Identified Ballwheel 20485 | -6/Factory | Build established: Mutant 20865 | -6/Factory | Fabricated G-47 Trooper? 20924 | -6/Factory | Discovered new exit (range 9) 21172 | -6/Factory | Fabricated Arm. Huge Wheel (x2) 21310 | -6/Factory | Discovered new exit (range 14) 21340 | -6/Factory | Central database locked down 21344 | -6/Factory | Build established: Gladiator 21407 | -6/Factory | Identified exit to Garrison 21439 | -6/Factory | Entered Garrison 21449 | -6/Garrison | Triggered checkpoint 21492 | -6/Garrison | Garrison Relay disabled 21627 | -6/Garrison | Installed Relay Interface Framework 21786 | -6/Garrison | Triggered checkpoint 21880 | -6/Garrison | Self-destructed Last Messages --------------- 21797_ Mak. Spear destroyed. 21804_ System corrupted: Component data lost. 21810_ W-25 Informer sends out distress signal. 21814_ The unstable cave ceiling collapses. 21814_ Y-54 Guardian Imp. Deuterium Engine severed. 21814_ Katana follow-up attack on Y-54 Guardian. 21814_ Y-54 Guardian destroyed. 21815_ Acquired 60 matter. 21824_ System corrupted: Substantial component data lost. Garrison Door activated. 21851_ Katana follow-up attack on G-50 Soldier. 21857_ Arm. Huge Wheel destroyed. 21860_ Katana follow-up attack on G-50 Soldier. 21863_ Critical hit (Burn: +37). 21863_ Arm. Wheel destroyed. 21865_ Great Axe destroyed. 21867_ Carbon-fiber Leg destroyed. 21873_ Katana destroyed. 21875_ Destroyed Lgt. Angular Momentum Engine. 21875_ Lgt. Angular Momentum Engine destroyed. Map ----- +----------------------------------------------------+ | ?/?????????????????????? #?????????????????????? | | ??+???????????????????## #?#####???????????????? | | ?????+???????????????? ## #?? ????????????? | | ??+??????????????????# # ## ????????????? | | ?/???????????????????? ????????????? | | ?????????????????????? ??????????? | | ??????????????????????? ? ??????????? | | ??????????????????????? #? #??????????? | | ?????????????????????### ## #??????????? | | ?????????????????????# ?????????? | | ?????????????????????# ?????????? | | ?????????????????????# ?????????? | | ?????????????????????# ?????????? | | ?????????????????????### # #????#??????????? | | ?????????????????????# ## #??????????? | | ?????????????????????## [ #??????????? | | ??????????????????????# [!=* +??????????? | | ??????????????????????## =*^ #??????????? | | ???????????????????????##! ## ## ##??????????? | | ????????????????????????# #? #???#???????????? | | ????????????????????????# #??####???????????????? | | ????????????????????????# #?????????????????????? | | ????????????????????????# #?????????????????????? | | ????????????????????????# #?????????????????????? | | ????????????????????????# g#?????????????????????? | | ???######################@g#??????????????+??????? | | ???# * #?????????????????????? | | ???# [==#??????+??????????????+ | | ???# ####"##############;;#?????????????????????? | | ???# #??# #????????????# *#?????????????????????? | | ???# #??# #????????????# #?????????????????????? | | ???# #??# #????????????# #?????????????????????? | | ???# #??# #????????????# #?????????????????????? | | ???# #??# #????????????# #?????????????????????? | | ???# #??# #????????????# #?????????????????????? | | ???# #??# #????????????# #?????????????????????? | | ???# #### #????????????# #?????????????????????? | | ???# ## #????????????# #?????????????????????? | | ???# " #????????????# #?????????????????????? | | ???# ####????????????# #?????????????????????? | | ???# ###???????????????# #?????????????????????? | | ???# #?????????????????# #?????????????????????? | | ???# #?????????????????# #?????????????????????? | | ???# #?????????????????# #?????????????????????? | | ???# #?????????????????# #?????????????????????? | | ##?# #?????????????????# #?????????????????????? | | #?# #?????????????????# #?????????????????????? | | ### ################### #?????????????????????? | | " ![ #?????????????????????? | | "! ! #?????????????????????? | +----------------------------------------------------+ Best States ------------- Heat Dissipation 52 Energy Generation 21 Energy Capacity 340 Matter Stores 300 Matter Capacity 300 Sight Range 16 Terrain Scan Density 10 Additional Mass Support 9 Armor Coverage 225 Resistance: TH 10 Utility Shielding 66 Weapon Shielding 33 Evasion (%) 50 Melee Accuracy 14 Recoil Reduction 3 Item Schematics ----------------- Lgt. Treads | -9/Materials | Hacked Hvy. Hammer | -9/Materials | Hacked Maul | -9/Materials | Hacked ECM Suite | -9/Materials | Scanalyzed Katana | -9/Materials | Scanalyzed Med. Storage Unit | -9/Storage | Hacked Hvy. Assault Rifle | -9/Storage | Hacked Arm. Wheel | -9/Recycling | Hacked Lgt. Assault Rifle | -9/Recycling | Hacked Arm. Huge Wheel | -6/Factory | Hacked Mni. Fusion Reactor | -6/Factory | Scanalyzed Robot Schematics ------------------ M-13 Machinist | -10/Materials | Hacked S-10 Pest | -10/Materials | Hacked G-34 Mercenary | -9/Recycling | Hacked Fabricated ------------ G-47 Trooper | x3 | -6/Factory | Preloaded Arm. Huge Wheel | x2 | -6/Factory Repaired ---------- Lgt. Treads | 30% | -10/Materials Alien Tech Used ----------------- None Achievements -------------- None Challenges ------------ None Game ------ Seed ScatterGodPurifier Manual? 0 Play Time 01:54:27 Cumulative 978.0 hours Start 2025.06.27 @ 15:33:03 End 2025.06.27 @ 19:42:19 Sessions 5 Manual Loads 0 Difficulty Rogue Special Mode None Game No. 505 Rogue 505 Adventurer 0 Explorer 0 Win Type - Total 23 Types 10/4/3/0/1/1/2/2/0/0 Lore% 87 Gallery% 88 Achievement% 83 Wizard Run 0 Options --------- Layout 0 ASCII 0 Keyboard 0 Movement Numpad Keybinds 0 Fullscreen 2 Font 24/Smallcaps Map View 76x50 Zoom Use 0% Tactical HUD 1 Map Filters NONE Filters SHIFT_HUE(315) Steam 1 RUN: e3636be5-3293-448f-8aa0-564e65703c87